fUST/lending_fUST_20260215
["ID","MTS","AMOUNT","RATE_DAILY","PERIOD"]
[405398872,1771138238472,-195.65,0.0001979,3]
[405398873,1771138238482,-586.97,0.0001979,3]
[405398874,1771138238491,-500.0,0.00019799,2]
[405398875,1771138238501,-166.70554782,0.00019799,2]
[405398876,1771138238510,-175.65536898,0.00019799,2]
[405398877,1771138238519,-500.0,0.00019799,2]
[405398878,1771138238528,-500.0,0.00019799,2]
[405398879,1771138238538,-500.0,0.00019799,2]
[405398880,1771138238547,-500.0,0.00019799,2]
[405398881,1771138238557,-500.0,0.00019799,2]
[405398882,1771138238567,-500.0,0.00019799,2]
[405398883,1771138238577,-500.0,0.00019799,2]
[405398884,1771138238586,-216.97487109,0.00019799,2]
[405398885,1771138238596,-82387.8441282,0.000198,2]
[405398886,1771138238607,-3117.74703739,0.000198,2]
[405398887,1771138238623,-25197.33346844,0.000198,2]
[405398906,1771138245839,-607.18883706,0.00019799,2]
[405398907,1771138245849,-410.97893715,0.00019799,2]
[405398909,1771138245858,-824.61940979,0.000198,2]
[405398910,1771138245869,-1400.20670523,0.000198,2]
[405398911,1771138245891,-38008.61985992,0.000198,2]
[405398912,1771138245906,-7631.27172655,0.000198,2]
[405398913,1771138245917,-468.49554241,0.000198,2]
[405398916,1771138246084,-17567.135338,0.000198,2]
[405398917,1771138246403,-1966.895633,0.000198,2]
[405398921,1771138871403,466.78944837,0.00013273,2]
[405398926,1771139235097,-3644.22708,0.0001763,2]
[405398927,1771139279335,225.45,9.99e-05,2]
[405399009,1771139438157,-5000.0,0.00017106,2]
[405399012,1771139438167,-5000.0,0.00017279,2]
[405399014,1771139438176,-1106.0,0.00017453,2]
[405399015,1771139438186,-300.0,0.00017541,2]
[405399017,1771139438195,-150.0,0.00017542,2]
[405399019,1771139438205,-781.9171592,0.00017863,2]
[405399021,1771139438215,-1000.0,0.0001854,2]
[405399023,1771139438223,-374.488933,0.00018608,2]
[405399025,1771139438233,-358.8347504,0.00018805,2]
[405399027,1771139438242,-190.77498568,0.00018977,2]
[405399028,1771139438251,-339.70220518,0.00018977,2]
[405399029,1771139438260,-178.57653745,0.00018977,2]
[405399030,1771139438269,-166.88644445,0.00018977,2]
[405399031,1771139438279,-556.88862936,0.00018977,2]
[405399032,1771139438289,-7230.06125065,0.00018977,2]
[405399033,1771139438298,-2000.0,0.00018978,2]
[405399034,1771139438308,-2000.0,0.00018978,2]
[405399035,1771139438317,-2000.0,0.00018978,2]
[405399036,1771139438326,-2000.0,0.00018978,2]
[405399037,1771139438335,-2000.0,0.00018978,2]
[405399038,1771139438345,-2000.0,0.00018978,2]
[405399039,1771139438354,-2000.0,0.00018978,2]
[405399040,1771139438365,-2000.0,0.00018978,2]
[405399041,1771139438374,-1901.71629832,0.00018978,2]
[405399042,1771139438384,-188.70833915,0.00018989,2]
[405399043,1771139438393,-4497.70307274,0.0001899,2]
[405399044,1771139438403,-634.0,0.00019004,2]
[405399045,1771139438412,-746.0,0.00019004,2]
[405399046,1771139438421,-433.0,0.00019004,2]
[405399047,1771139438431,-420.0,0.00019148,2]
[405399048,1771139438440,-500.0,0.00019302,2]
[405399049,1771139438450,-174.13982207,0.00019302,2]
[405399050,1771139438461,-150.0,0.00019302,2]
[405399051,1771139438470,-168.28785032,0.00019302,2]
[405399052,1771139438480,-284.86198359,0.00019302,2]
[405399053,1771139438489,-150.0,0.00019302,2]
[405399054,1771139438499,-500.0,0.00019302,2]
[405399055,1771139438509,-150.0,0.00019302,2]
[405399056,1771139438518,-212.89680282,0.00019302,2]
[405399057,1771139438527,-150.0,0.00019302,2]
[405399058,1771139438537,-152.33037944,0.00019302,2]
[405399059,1771139438547,-154.13297903,0.00019302,2]
[405399060,1771139438561,-150.0,0.00019302,2]
[405399061,1771139438571,-500.0,0.00019302,2]
[405399062,1771139438580,-208.52518531,0.00019354,2]
[405399063,1771139438590,-500.0,0.00019357,2]
[405399064,1771139438599,-500.0,0.00019357,2]
[405399065,1771139438609,-150.0,0.00019357,2]
[405399066,1771139438618,-150.0,0.00019357,2]
[405399067,1771139438627,-500.0,0.00019357,2]
[405399068,1771139438638,-150.57053047,0.00019357,2]
[405399069,1771139438648,-150.56041811,0.00019357,2]
[405399070,1771139438658,-150.0,0.00019357,2]
[405399071,1771139438667,-500.0,0.00019357,2]
[405399072,1771139438677,-500.0,0.00019357,2]
[405399073,1771139438686,-500.0,0.00019357,2]
[405399074,1771139438696,-500.0,0.00019357,2]
[405399075,1771139438705,-150.0,0.00019357,2]
[405399076,1771139438716,-500.0,0.00019357,2]
[405399077,1771139438726,-500.0,0.00019357,2]
[405399078,1771139438736,-255.96279351,0.00019357,2]
[405399079,1771139438745,-500.0,0.00019357,2]
[405399080,1771139438755,-500.0,0.00019412,2]
[405399081,1771139438765,-150.0,0.00019412,2]
[405399082,1771139438775,-213.64538536,0.00019412,2]
[405399083,1771139438784,-186.89188245,0.00019412,2]
[405399084,1771139438793,-150.0,0.00019412,2]
[405399085,1771139438802,-233.88820602,0.00019412,2]
[405399086,1771139438814,-500.0,0.00019412,2]
[405399087,1771139438823,-500.0,0.00019412,2]
[405399088,1771139438832,-500.0,0.00019412,2]
[405399089,1771139438841,-150.0,0.00019412,2]
[405399090,1771139438851,-584.90483733,0.00019412,2]
[405399091,1771139438860,-500.0,0.00019412,2]
[405399092,1771139438870,-500.0,0.00019412,2]
[405399093,1771139438879,-500.0,0.00019421,2]
[405399094,1771139438889,-500.0,0.00019454,2]
[405399095,1771139438899,-500.0,0.00019466,2]
[405399096,1771139438909,-150.0,0.00019466,2]
[405399097,1771139438918,-150.0,0.00019466,2]
[405399098,1771139438928,-500.0,0.00019467,2]
[405399099,1771139438938,-500.0,0.00019467,2]
[405399100,1771139438947,-500.0,0.00019467,2]
[405399101,1771139438957,-200.0,0.00019467,2]
[405399102,1771139438967,-502.36194866,0.00019467,2]
[405399103,1771139438977,-500.0,0.00019467,2]
[405399104,1771139438987,-500.0,0.00019521,2]
[405399105,1771139438997,-187.00031284,0.00019521,2]
[405399106,1771139439007,-500.0,0.00019521,2]
[405399107,1771139439017,-500.0,0.00019521,2]
[405399108,1771139439027,-500.0,0.00019521,2]
[405399109,1771139439037,-500.0,0.00019521,2]
[405399110,1771139439047,-177.0,0.00019542,2]
[405399111,1771139439057,-250.0,0.00019552,2]
[405399112,1771139439066,-250.0,0.00019552,2]
[405399113,1771139439077,-250.0,0.00019552,2]
[405399114,1771139439086,-194.72792766,0.00019552,2]
[405399115,1771139439095,-250.0,0.00019552,2]
[405399116,1771139439105,-250.0,0.00019552,2]
[405399117,1771139439115,-250.0,0.00019552,2]
[405399118,1771139439125,-201.93286099,0.00019552,2]
[405399119,1771139439135,-250.0,0.00019552,2]
[405399120,1771139439145,-250.0,0.00019552,2]
[405399121,1771139439155,-209.40437684,0.00019552,2]
[405399122,1771139439165,-250.0,0.00019552,2]
[405399123,1771139439174,-250.0,0.00019552,2]
[405399124,1771139439183,-250.0,0.00019552,2]
[405399125,1771139439192,-217.15233878,0.00019552,2]
[405399126,1771139439202,-250.0,0.00019552,2]
[405399127,1771139439211,-250.0,0.00019552,2]
[405399128,1771139439220,-250.0,0.00019552,2]
[405399129,1771139439230,-225.18697532,0.00019552,2]
[405399130,1771139439239,-354.33178874,0.00019552,2]
[405399131,1771139439249,-270.56129644,0.00019552,2]
[405399132,1771139439258,-250.0,0.00019552,2]
[405399133,1771139439267,-233.51889341,0.00019552,2]
[405399134,1771139439276,-250.0,0.00019552,2]
[405399135,1771139439285,-250.0,0.00019552,2]
[405399136,1771139439295,-242.15909246,0.00019552,2]
[405399137,1771139439304,-250.0,0.00019552,2]
[405399138,1771139439313,-251.11897888,0.00019552,2]
[405399139,1771139439322,-250.0,0.00019552,2]
[405399140,1771139439331,-250.0,0.00019552,2]
[405399141,1771139439341,-260.4103811,0.00019552,2]
[405399142,1771139439351,-250.0,0.00019552,2]
[405399143,1771139439360,-250.0,0.00019552,2]
[405399144,1771139439369,-270.0455652,0.00019552,2]
[405399145,1771139439379,-250.0,0.00019552,2]
[405399146,1771139439388,-250.0,0.00019552,2]
[405399147,1771139439398,-280.03725112,0.00019552,2]
[405399148,1771139439407,-250.0,0.00019552,2]
[405399149,1771139439417,-250.0,0.00019552,2]
[405399150,1771139439426,-290.39862941,0.00019552,2]
[405399151,1771139439435,-250.0,0.00019552,2]
[405399152,1771139439445,-250.0,0.00019552,2]
[405399153,1771139439454,-301.14337871,0.00019552,2]
[405399154,1771139439464,-250.0,0.00019552,2]
[405399155,1771139439473,-250.0,0.00019552,2]
[405399156,1771139439482,-500.0,0.00019552,2]
[405399157,1771139439492,-250.0,0.00019552,2]
[405399158,1771139439501,-500.0,0.00019552,2]
[405399159,1771139439510,-250.0,0.00019552,2]
[405399160,1771139439519,-500.0,0.00019552,2]
[405399161,1771139439529,-250.0,0.00019552,2]
[405399162,1771139439538,-500.0,0.00019552,2]
[405399163,1771139439550,-250.0,0.00019552,2]
[405399164,1771139439565,-500.0,0.00019552,2]
[405399165,1771139439574,-250.0,0.00019552,2]
[405399166,1771139439583,-500.0,0.00019552,2]
[405399167,1771139439594,-250.0,0.00019552,2]
[405399168,1771139439603,-500.0,0.00019552,2]
[405399169,1771139439613,-250.0,0.00019552,2]
[405399170,1771139439623,-500.0,0.00019552,2]
[405399171,1771139439632,-250.0,0.00019552,2]
[405399172,1771139439745,-500.0,0.00019552,2]
[405399173,1771139439756,-250.0,0.00019552,2]
[405399174,1771139439765,-250.0,0.00019552,2]
[405399175,1771139439774,-500.0,0.00019552,2]
[405399176,1771139439783,-250.0,0.00019552,2]
[405399177,1771139439793,-250.0,0.00019552,2]
[405399178,1771139439802,-500.0,0.00019552,2]
[405399179,1771139439811,-250.0,0.00019552,2]
[405399180,1771139439820,-250.0,0.00019552,2]
[405399181,1771139439830,-500.0,0.00019552,2]
[405399182,1771139439840,-250.0,0.00019552,2]
[405399183,1771139439849,-250.0,0.00019552,2]
[405399184,1771139439858,-500.0,0.00019552,2]
[405399185,1771139439867,-500.0,0.00019552,2]
[405399186,1771139439877,-268.51048749,0.00019552,2]
[405399187,1771139439887,-250.0,0.00019552,2]
[405399188,1771139439896,-500.0,0.00019552,2]
[405399189,1771139439906,-500.0,0.00019552,2]
[405399190,1771139439916,-250.0,0.00019552,2]
[405399191,1771139439926,-500.0,0.00019552,2]
[405399192,1771139439936,-250.0,0.00019552,2]
[405399193,1771139439945,-500.0,0.00019552,2]
[405399194,1771139439955,-250.0,0.00019552,2]
[405399195,1771139439964,-500.0,0.00019552,2]
[405399196,1771139439973,-250.0,0.00019552,2]
[405399198,1771139439983,-156.86,0.00019562,2]
[405399200,1771139439992,-500.0,0.00019574,2]
[405399201,1771139440002,-500.0,0.00019574,2]
[405399202,1771139440011,-278.76119084,0.00019576,2]
[405399203,1771139440021,-630.877447,0.00019576,2]
[405399204,1771139440031,-500.0,0.00019576,2]
[405399205,1771139440040,-500.0,0.00019576,2]
[405399206,1771139440050,-389.70656807,0.00019602,2]
[405399207,1771139440060,-500.0,0.00019631,2]
[405399208,1771139440069,-500.0,0.00019631,2]
[405399209,1771139440079,-500.0,0.00019631,2]
[405399210,1771139440087,-500.0,0.00019686,2]
[405399211,1771139440097,-500.0,0.00019686,2]
[405399213,1771139440107,-500.0,0.0001974,2]
[405399214,1771139440116,-500.0,0.0001974,2]
[405399217,1771139440125,-162.92012363,0.00019741,2]
[405399218,1771139440135,-500.0,0.00019741,2]
[405399220,1771139440145,-520.56537921,0.00019787,2]
[405399222,1771139440154,-500.0,0.00019787,2]
[405399224,1771139440163,-500.0,0.00019787,2]
[405399226,1771139440172,-500.0,0.00019787,2]
[405399228,1771139440181,-500.0,0.00019787,2]
[405399230,1771139440191,-1072.6,0.00019789,3]
[405399232,1771139440200,-536.3,0.00019789,3]
[405399234,1771139440209,-268.15,0.00019789,3]
[405399236,1771139440219,-804.49,0.00019789,3]
[405399238,1771139440228,-749.94608544,0.00019795,2]
[405399240,1771139440237,-304.63500192,0.00019795,2]
[405399243,1771139440247,-647.61966811,0.00019795,2]
[405399244,1771139440256,-500.0,0.00019795,2]
[405399247,1771139440266,-500.0,0.00019798,2]
[405399249,1771139440275,-500.0,0.00019798,2]
[405399251,1771139440285,-500.0,0.00019798,2]
[405399253,1771139440295,-500.0,0.00019798,2]
[405399255,1771139440304,-500.0,0.00019798,2]
[405399257,1771139440313,-500.0,0.00019798,2]
[405399258,1771139440322,-500.0,0.00019798,2]
[405399260,1771139440332,-500.0,0.00019798,2]
[405399261,1771139440342,-41072.1399936,0.00019799,2]
[405399262,1771139440351,-3497.0678871,0.00019799,2]
[405399263,1771139440362,-15932.9742092,0.00019799,2]
[405399264,1771139440371,-9000.0,0.00019799,2]
[405399265,1771139440380,-2283.87689333,0.00019799,2]
[405399266,1771139440390,-1276.2027,0.00019799,2]
[405399267,1771139440399,-454.2773,0.00019799,3]
[405399268,1771139440408,-500.0,0.00019799,2]
[405399269,1771139440419,-500.0,0.00019799,2]
[405399270,1771139440427,-500.0,0.00019799,2]
[405399272,1771139440436,-500.0,0.00019799,2]
[405399274,1771139440445,-500.0,0.00019799,2]
[405399275,1771139440455,-500.0,0.00019799,2]
[405399276,1771139440464,-577.41216653,0.00019799,2]
[405399277,1771139440473,-500.0,0.00019799,2]
[405399278,1771139440482,-633.41980092,0.00019799,2]
[405399279,1771139440492,-245147.9195198,0.000198,2]
[405399280,1771139440501,-151.0,0.000198,2]
[405399281,1771139440511,-151.0,0.000198,2]
[405399282,1771139440520,-151.0,0.000198,2]
[405399283,1771139440529,-151.0,0.000198,2]
[405399284,1771139440539,-913.83,0.000198,2]
[405399285,1771139440549,-318210.97870142,0.000198,2]
[405399286,1771139440562,-20596.304983,0.000198,2]
[405399287,1771139440571,-7581.19381294,0.000198,2]
[405399288,1771139440580,-487.0,0.000198,2]
[405399289,1771139440591,-487.0,0.000198,2]
[405399290,1771139440600,-487.0,0.000198,2]
[405399291,1771139440609,-487.0,0.000198,2]
[405399292,1771139440618,-487.0,0.000198,2]
[405399293,1771139440628,-487.0,0.000198,2]
[405399294,1771139440638,-487.0,0.000198,2]
[405399295,1771139440648,-487.0,0.000198,2]
[405399296,1771139440657,-487.0,0.000198,2]
[405399297,1771139440667,-487.0,0.000198,2]
[405399298,1771139440676,-487.0,0.000198,2]
[405399299,1771139440689,-487.0,0.000198,2]
[405399300,1771139440698,-487.0,0.000198,2]
[405399301,1771139440707,-487.0,0.000198,2]
[405399302,1771139440716,-487.0,0.000198,2]
[405399303,1771139440725,-487.0,0.000198,2]
[405399304,1771139440735,-487.0,0.000198,2]
[405399305,1771139440744,-487.0,0.000198,2]
[405399306,1771139440753,-487.0,0.000198,2]
[405399307,1771139440763,-487.0,0.000198,2]
[405399308,1771139440772,-487.0,0.000198,2]
[405399309,1771139440781,-487.0,0.000198,2]
[405399310,1771139440790,-487.0,0.000198,2]
[405399311,1771139440799,-379.93016027,0.000198,2]
[405399312,1771139440813,-107.06983973,0.000198,2]
[405399313,1771139440822,-487.0,0.000198,2]
[405399314,1771139440831,-487.0,0.000198,2]
[405399315,1771139440840,-487.0,0.000198,2]
[405399316,1771139440850,-487.0,0.000198,2]
[405399317,1771139440859,-487.0,0.000198,2]
[405399318,1771139440868,-487.0,0.000198,2]
[405399319,1771139440878,-677.04,0.000198,2]
[405399320,1771139440887,-150.262,0.00019803,2]
[405399321,1771139440896,-151.602,0.00019803,2]
[405399322,1771139440906,-151.624,0.00019803,2]
[405399323,1771139440915,-150.572,0.00019803,2]
[405399324,1771139440925,-250.0,0.00019803,2]
[405399325,1771139440934,-2169.0,0.00019803,2]
[405399326,1771139440943,-1416.032,0.00019803,2]
[405399327,1771139440953,-168.0,0.00019821,2]
[405399328,1771139440962,-284.0,0.00019828,2]
[405399329,1771139440972,-500.0,0.0001985,2]
[405399330,1771139440981,-168.0,0.00019875,2]
[405399331,1771139440990,-168.0,0.00019883,2]
[405399332,1771139441000,-1529.0,0.00019886,2]
[405399333,1771139441009,-284.0,0.00019892,2]
[405399334,1771139441019,-13177.03356684,0.000199,2]
[405399335,1771139441028,-303.92160998,0.00019902,2]
[405399336,1771139441037,-500.0,0.00019905,2]
[405399337,1771139441046,-440.62813975,0.00019905,2]
[405399338,1771139441056,-168.0,0.00019922,2]
[405399339,1771139441065,-284.0,0.00019933,2]
[405399340,1771139441075,-168.0,0.00019937,2]
[405399341,1771139441085,-499.37993315,0.00019946,2]
[405399342,1771139441094,-1529.0,0.00019953,2]
[405399343,1771139441103,-168.0,0.00019971,2]
[405399344,1771139441113,-284.0,0.00019977,2]
[405399345,1771139441122,-173068.61199841,0.0002,2]
[405399346,1771139441283,-500.0,0.00019552,2]
[405399347,1771139441293,-250.0,0.00019552,2]
[405399348,1771139441302,-500.0,0.00019552,2]
[405399349,1771139441311,-250.0,0.00019552,2]
[405399350,1771139441320,-250.0,0.00019552,2]
[405399351,1771139441330,-3864.6522603,0.0002,2]
[405399357,1771139446122,-500.0,0.00019552,2]
[405399358,1771139446132,-250.0,0.00019552,2]
[405399359,1771139446141,-239.17960489,0.00019552,2]
[405399361,1771139789265,159.21608189,0.00013699,2]
[405399363,1771140004818,502.9594107,0.00013273,2]
[405399364,1771140014372,500.0,0.00013699,2]
[405399365,1771140014424,1000.0,0.00014247,2]
[405399366,1771140014479,517.75382645,0.00014795,2]
[405399374,1771140441128,-364.422708,0.00016815,2]
[405399500,1771140638303,-2709.42940622,0.00016481,2]
[405399501,1771140638312,-1513.26374925,0.00016547,2]
[405399502,1771140638322,-5000.0,0.00016647,2]
[405399503,1771140638331,-150.0,0.000169,2]
[405399505,1771140638511,-300.0,0.00016999,2]
[405399506,1771140638521,-129.37267029,0.00017,2]
[405399512,1771140640420,-7011.406348,0.00017,2]
[405399513,1771140640429,-26009.21208894,0.00018,2]
[405400017,1771140645800,-5000.0,0.0001782,2]
[405400020,1771140645809,-5692.31719226,0.00018,2]
[405400022,1771140645821,-77910.75490821,0.00018,2]
[405400024,1771140645831,-2388.590633,0.00018164,2]
[405400026,1771140645840,-4946.0463261,0.0001826,2]
[405400028,1771140645850,-420.0,0.00018567,2]
[405400031,1771140645864,-1000.0,0.000187,2]
[405400034,1771140645874,-1000.0,0.000187,2]
[405400037,1771140645883,-1000.0,0.000187,2]
[405400039,1771140645892,-1000.0,0.000187,2]
[405400041,1771140645902,-1000.0,0.000187,2]
[405400043,1771140645912,-8715.507736,0.000187,2]
[405400045,1771140645921,-1000.0,0.000188,2]
[405400047,1771140645933,-1344.0,0.00018808,2]
[405400049,1771140645943,-177.0,0.000189,2]
[405400051,1771140645953,-469.28,0.0001898,3]
[405400053,1771140645962,-625.68,0.0001899,3]
[405400056,1771140645972,-312.84,0.0001899,3]
[405400058,1771140645981,-156.42,0.0001899,3]
[405400059,1771140645990,-2603.49,0.00019,2]
[405400062,1771140646000,-3778.93995287,0.00019,2]
[405400064,1771140646009,-168.0,0.00019195,2]
[405400065,1771140646019,-3140.23348821,0.00019205,5]
[405400068,1771140646028,-168.0,0.00019337,2]
[405400070,1771140646038,-500.0,0.00019466,2]
[405400072,1771140646047,-500.0,0.00019466,3]
[405400074,1771140646056,-500.0,0.00019466,4]
[405400076,1771140646066,-548.82696978,0.00019543,2]
[405400078,1771140646076,-168.0,0.00019544,2]
[405400080,1771140646085,-168.0,0.00019554,2]
[405400082,1771140646095,-539.07534876,0.00019562,5]
[405400084,1771140646108,-168.0,0.0001959,2]
[405400087,1771140646121,-259.80437871,0.000196,2]
[405400089,1771140646134,-2169.0,0.00019677,2]
[405400091,1771140646146,-1379.0,0.00019677,2]
[405400094,1771140646158,-723.0,0.00019677,2]
[405400096,1771140646168,-425.0,0.00019677,2]
[405400098,1771140646180,-184.01,0.00019677,2]
[405400100,1771140646192,-500.0,0.00019688,2]
[405400102,1771140646203,-502.63169241,0.00019688,2]
[405400105,1771140646215,-500.0,0.00019688,2]
[405400107,1771140646227,-500.0,0.00019688,2]
[405400109,1771140646239,-500.0,0.00019688,2]
[405400112,1771140646252,-260.82039511,0.00019688,2]
[405400114,1771140646265,-14011.35062697,0.000197,2]
[405400116,1771140646277,-500.0,0.00019726,2]
[405400118,1771140646288,-500.0,0.00019726,2]
[405400121,1771140646301,-505.45120537,0.00019781,2]
[405400123,1771140646312,-560890.39514596,0.00019785,2]
[405400125,1771140646325,-487.0,0.00019785,2]
[405400127,1771140646336,-487.0,0.00019785,2]
[405400130,1771140646348,-487.0,0.00019785,2]
[405400132,1771140646359,-487.0,0.00019785,2]
[405400134,1771140646370,-487.0,0.00019785,2]
[405400137,1771140646386,-487.0,0.00019785,2]
[405400139,1771140646398,-487.0,0.00019785,2]
[405400141,1771140646412,-487.0,0.00019785,2]
[405400144,1771140646423,-487.0,0.00019785,2]
[405400146,1771140646436,-487.0,0.00019785,2]
[405400148,1771140646448,-487.0,0.00019785,2]
[405400150,1771140646459,-487.0,0.00019785,2]
[405400153,1771140646469,-487.0,0.00019785,2]
[405400155,1771140646479,-487.0,0.00019785,2]
[405400157,1771140646489,-487.0,0.00019785,2]
[405400159,1771140646499,-487.0,0.00019785,2]
[405400161,1771140646510,-487.0,0.00019785,2]
[405400163,1771140646521,-588.31,0.00019785,2]
[405400165,1771140646531,-4069.8369468,0.00019792,2]
[405400167,1771140646543,-553.32023519,0.00019799,2]
[405400170,1771140646555,-38008.61985992,0.000198,2]
[405400172,1771140646566,-1165.7154026,0.000198,2]
[405400174,1771140646578,-468.49554241,0.000198,2]
[405400176,1771140646589,-2072.38293796,0.000198,2]
[405400178,1771140646600,-898.88387968,0.000198,2]
[405400181,1771140646612,-3238.09834056,0.000198,2]
[405400183,1771140646625,-4662.86161041,0.000198,2]
[405400185,1771140646637,-1598.01578609,0.000198,2]
[405400188,1771140646648,-2496.89966577,0.000198,2]
[405400190,1771140646660,-3117.74703739,0.000198,2]
[405400192,1771140646670,-391.11386717,0.000198,2]
[405400194,1771140646680,-307.0,0.00019813,2]
[405400196,1771140646691,-11859.33021021,0.000199,2]
[405400198,1771140646700,-151.0,0.000199,2]
[405400200,1771140646710,-8805.9886103,0.00019974,2]
[405400202,1771140646720,-3416.0769183,0.00019974,2]
[405400206,1771140646732,-174.108758,0.00019974,2]
[405400210,1771140646745,-256667.45212766,0.0002,2]
[405400212,1771140646759,-5494.45217637,0.0002,2]
[405400215,1771140646772,-473.30143681,0.0002,2]
[405406855,1771140719695,-1180.96540882,0.00019503,2]
[405407328,1771140970839,500.0,0.00013699,2]
[405407329,1771140970887,1123.48542514,0.00014247,2]
[405407332,1771141271366,500.0,0.00013699,2]
[405407333,1771141271397,1028.38857604,0.00014247,2]
[405407334,1771141288160,500.0,0.00013699,2]
[405407335,1771141288209,1000.0,0.00014247,2]
[405407336,1771141288266,505.70718368,0.00014795,2]
[405407338,1771141565920,500.0,0.00013699,2]
[405407344,1771141746126,-1805.93144032,0.00017639,2]
[405407345,1771141748130,-1927.55772034,0.00017639,2]
[405407346,1771141772097,-1266.51083934,0.00017639,2]
[405407347,1771141772120,-150.0,0.00017728,2]
[405407348,1771141772141,-4825.85997846,0.00017817,2]
[405407354,1771141832543,-174.14002154,0.00017463,2]
[405407355,1771141832553,-5000.0,0.00017639,2]
[405407356,1771141832563,-2504.45,0.0001891,2]
[405407357,1771141832573,-323.272325,0.00018911,2]
[405407358,1771141832582,-300.0,0.00018989,2]
[405407359,1771141832592,-10588.11801053,0.0001899,2]
[405407360,1771141832602,-270.1277482,0.00019,2]
[405407361,1771141832611,-270.12774819,0.00019,2]
[405407363,1771141832621,-1379.0,0.00019514,2]
[405407365,1771141832630,-634.0,0.00019514,2]
[405407367,1771141832639,-1511.70394605,0.00019514,2]
[405407393,1771141838548,-5000.0,0.00019318,2]
[405407394,1771141838558,-461.25986279,0.00019514,2]
[405407395,1771141838570,-196.03619116,0.00019514,2]
[405407396,1771141838579,-150.0,0.00019514,2]
[405407397,1771141838589,-173.20291914,0.000196,2]
[405407398,1771141838599,-177.0,0.00019728,2]
[405407400,1771141838608,-274.44454238,0.000198,2]
[405407403,1771141840812,-172.54273439,0.000198,2]
[405407404,1771141840822,-314.27093668,0.000198,2]
[405407405,1771141840831,-186.13348679,0.000198,2]
[405407406,1771141840841,-184.01025894,0.000198,2]
[405407407,1771141840851,-2403.3060058,0.0001984,2]
[405407408,1771141840860,-228.4504638,0.00019848,2]
[405407409,1771141840869,-10083.7174057,0.00019848,2]
[405407410,1771141840879,-1110.7286202,0.00019848,2]
[405407411,1771141840888,-10673.39718918,0.000199,2]
[405407412,1771141840897,-6381.19146282,0.000199,2]
[405407413,1771141840907,-235.19,0.0001999,3]
[405407414,1771141840915,-218.39,0.0001999,3]
[405407415,1771141840925,-655.22,0.0001999,3]
[405407416,1771141840934,-2505.9514357,0.0002,2]
[405407417,1771141840945,-4531.09590182,0.0002,2]
[405407449,1771141846627,-1213.73803491,0.000178,2]
[405407450,1771141846638,-4843.2840738,0.0002,2]
[405407455,1771141847998,-270.12774819,0.00019,2]
[405407456,1771141848008,-25079.07051604,0.0002,2]
[405407457,1771141848019,-39041.0643482,0.0002,2]
[405407463,1771142065998,3149.99,0.00023549,120]
[405407464,1771142104611,15000.0,0.00019,120]
[405407468,1771142225012,500.0,0.00013699,2]
[405407471,1771142481740,-5000.0,0.00016932,2]
[405407476,1771142803097,-3644.22708,0.0001668,2]
[405407477,1771142803117,-3644.22708,0.00016848,2]
[405407478,1771142803130,-1355.77292,0.00016848,2]
[405407479,1771142803139,-150.0,0.00016969,2]